Cogmind - Beta 17 @@@ ROGUE MODE // 2026.07.09 @ 12:17:13 Player: pinbox Result: Destroyed by G-34 Mercenary with Small Laser Performance ------------- Evolutions (0) 0 Regions Visited (1) 200 Robots Destroyed (9) 45 Value Destroyed (247) 247 Prototype IDs (0) 0 Alien Tech Used (0) 0 Bonus (0) 0 TOTAL SCORE: 492 Bonus ------- None Cogmind --------- Core Integrity 0/250 Matter 230/300 Energy 100/100 System Corruption 0% Temperature Cool (6) Movement Core (750) Ox14 Location -10/Materials Parts ------- > --- POWER (1) -------- (None) > --- PROPULSION (2) --- (None) > --- UTILITY (2) ------ High-capacity Storage Unit Seismic Detector > --- WEAPON (2) ------- Assault Rifle > --- INVENTORY (20) --- Compact Wheel Peak State ------------ > --- POWER ------------ Ion Engine > --- PROPULSION ------- Light Treads Light Treads > --- UTILITY ---------- Small Storage Unit Seismic Detector > --- WEAPON ----------- Medium Laser Assault Rifle > --- INVENTORY -------- Compact Wheel [Rating: 7] Favorites ----------- Power Ion Engine Engine Ion Engine Propulsion Light Treads Treads Light Treads Utility Seismic Detector Device Seismic Detector Storage High-capacity Storage Unit Weapon Assault Rifle Energy Gun Medium Laser Ballistic Gun Assault Rifle Build | -11 -10 ------- Run | Yrd Mat Slots Evolved . | . . Power . | . . Propulsion . | . . Utility . | . . Weapon . | . . Parts Attached 9 | 7 2 Power 1 | 1 . Engine 1 | 1 . Core . | . . Reactor . | . . Propulsion 2 | 2 . Treads 2 | 2 . Leg . | . . Wheel . | . . Hover . | . . Flight . | . . Utility 3 | 2 1 Device 1 | 1 . Storage 2 | 1 1 Processor . | . . Hackware . | . . Protection . | . . Artifact . | . . Weapon 3 | 2 1 Energy Gun 1 | 1 . Energy Cannon . | . . Ballistic Gun 2 | 1 1 Ballistic Cannon . | . . Launcher . | . . Special Weapon . | . . Impact Weapon . | . . Slashing Weapon . | . . Piercing Weapon . | . . Special Melee Weapon . | . . Unidentified Prototypes . | . . Parts Lost 5 | . 5 Power 1 | . 1 Propulsion 2 | . 2 Utility . | . . Weapon 2 | . 2 Highest Loss Streak 5 | . 5 To Critical Strikes . | . . Average Backups . | . 1 Power . | . . Propulsion . | . 1 Utility . | . . Weapon . | . . Tool/Special . | . . Unused Backups 1 | . 1 Power . | . . Propulsion 1 | . 1 Utility . | . . Weapon . | . . Tool/Special . | . . Average Slot Usage (%) 95 | . 95 Engine 13 | . 13 Treads 26 | . 26 Device 14 | . 14 Storage 14 | . 14 Energy Gun 12 | . 12 Ballistic Gun 14 | . 14 Peak Build Rating 7 | 7 7 Average Rating 6 | 5 6 On Entrance 3 | . 7 Avg Prop Armor Cover (%) . | . . Naked Turns . | . . Heaviest Build 50 | 15 50 Greatest Support 40 | 40 40 Greatest Overweight (x) 1 | . 1 Average Overweight (x) . | . . Largest Inventory Capacity 20 | 8 20 Average Capacity 13 | 7 17 Most Carried 2 | 1 2 Average Carried . | . 1 Final Capacity 20 | 8 20 Final Carried 1 | 1 1 Class Distribution -------------------- 100% | Mutant Dominant Class ---------------- Mutant | -10/Materials Resources | -11 -10 ----------- Run | Yrd Mat Matter Collected 349 | 259 90 Remotely . | . . Salvage Created 312 | 44 268 Parts 16 | 6 10 Haulers Intercepted . | . . Recyclers Shooed 2 | 1 1 Parts Field Recycled . | . . Retrieved Matter . | . . Parts Self-Destructed . | . . Prevented . | . . Parts Restored . | . . Kills | -11 -10 ------- Run | Yrd Mat Combat Hostiles Destroyed 6 | . 6 Guns 6 | . 6 Classes Destroyed 3 | 1 2 Tunneler 2 | 2 . Watcher 1 | . 1 Grunt 6 | . 6 Best Kill Streak 3 | 2 3 Combat Bots Only 2 | . 2 Max Kills in Single Turn 1 | 1 1 Gunslinging . | . . Exploded . | . . Melee . | . . Uniques/NPCs Destroyed . | . . Combat | -11 -10 -------- Run | Yrd Mat Hostile Shots Fired 88 | . 88 Missed 18 | . 18 Hits 70 | . 70 Projectile 70 | . 70 Critical Strikes 1 | . 1 Damage Taken 873 | . 873 Core 254 | . 254 Absorbed by Shields . | . . Core Remaining (%) 100 | 100 . Volleys Fired 52 | 6 46 Largest 2 | 2 2 Hottest 70 | 70 70 Shots Fired 91 | 12 79 Gun 91 | 12 79 Cannon . | . . Launcher . | . . Special . | . . Kinetic 52 | 6 46 Thermal 39 | 6 33 Explosive . | . . Electromagnetic . | . . Robot Hit Streak 7 | 4 7 Robot Miss Streak 6 | 3 6 Penetration Max . | . . Secondary Targets 1 | . 1 Max Gunslinging Chain 1 | . 1 Shots Hit Robots 57 | 7 50 Core Hits 18 | 2 16 Critical Kills . | . . Critical Parts Destroyed 1 | . 1 Critical Strikes 4 | 1 3 Burn 3 | 1 2 Destroy 1 | . 1 Melee Attacks . | . . Impact . | . . Slashing . | . . Piercing . | . . Sneak Attacks . | . . Combat Hostiles . | . . Follow-up Attacks . | . . Damage Inflicted 768 | 91 677 Guns 764 | 87 677 Cannons . | . . Explosions . | . . Melee . | . . Ramming 4 | 4 . Kinetic 460 | 49 411 Thermal 304 | 38 266 Explosive . | . . Electromagnetic . | . . Impact . | . . Slashing . | . . Piercing . | . . Highest Corruption . | . . Average Corruption . | . . Corruption Purged . | . . Corruption Blocked . | . . Overload Shots . | . . Overflow Damage . | . . Projectiles . | . . Explosions . | . . Melee . | . . Knockbacks . | . . Impact . | . . Kinetic . | . . Secondary . | . . Self-Inflicted Damage . | . . Shots . | . . Rammed 1 | 1 . Targets Rammed 1 | 1 . Kicked . | . . Crushed . | . . Highest Temperature 300 | 18 300 Average Temperature 111 | 10 124 Received Heat Transfer 513 | . 513 Siege Activations . | . . Martial Activations . | . . Shielding Activations . | . . Robots Disrupted . | . . Combat Hostiles . | . . Robots Corrupted . | . . Combat Hostiles . | . . Parts Fried . | . . Impact Corruptions . | . . Robots Melted . | . . Combat Hostiles . | . . Parts Melted 2 | . 2 Heat Transferred 1110 | 185 925 Parts Sabotaged . | . . Parts Stolen . | . . Parts Stripped . | . . Power Chain Reactions . | . . Alert | -11 -10 ------- Run | Yrd Mat Maximum Alert Level . | . . Low Security (%) 100 | 100 100 Level 1 . | . . Level 2 . | . . Level 3 . | . . Level 4 . | . . Level 5 . | . . High Security . | . . Max Security . | . . Peak Influence 74 | 10 74 Initial . | . . Average 19 | . 30 Influence Increases 180 | 10 170 Destroy 0b10 Robot/C 120 | . 120 Destroy 0b10 Robot/NC 15 | 10 5 Destroy Leader 22 | . 22 Successful Hack 23 | . 23 Influence Decreases 156 | 10 146 Time Decay 106 | 10 96 Lost Part 50 | . 50 Squads Dispatched 1 | . 1 Investigation . | . . Extermination . | . . Reinforcement 1 | . 1 Assault . | . . Garrison . | . . Intercept . | . . Searches Triggered . | . . Construction Impeded . | . . Haulers Reinforced . | . . Active Scanning Responses . | . . Cargo Convoy Interrupts . | . . Stealth | -11 -10 --------- Run | Yrd Mat Distress Signals 2 | . 2 Communications Jammed . | . . Distress Signals . | . . Times Spotted 13 | . 13 Peak Tracking Total 4 | . 4 Tactical Retreats . | . . Traps | -11 -10 ------- Run | Yrd Mat Traps Triggered . | . . Indirectly . | . . Trap Hack Attempts . | . . Triggered . | . . Disarmed . | . . Reprogrammed . | . . Reused . | . . Traps Extracted . | . . Installed . | . . Triggered . | . . Machines | -11 -10 ---------- Run | Yrd Mat Machines Disabled . | . . Max in Single Turn . | . . Machines Repaired . | . . Machines Dismantled . | . . Machines Sabotaged . | . . Overloaded Fab Kills . | . . Hacking | -11 -10 --------- Run | Yrd Mat Machines Accessed 2 | . 2 Terminals 2 | . 2 Fabricators . | . . Repair Stations . | . . Recycling Units . | . . Scanalyzers . | . . Garrison Access . | . . Total Hacks 7 | . 7 Successful 5 | . 5 Failed 2 | . 2 Catastrophic 2 | . 2 Database Lockouts . | . . Manual 5 | . 5 Terminals 7 | . 7 Fabricators . | . . Repair Stations . | . . Recycling Units . | . . Scanalyzers . | . . Garrison Access . | . . Terminal Hacks 4 | . 4 Terminal Index 1 | . 1 Registered Components 1 | . 1 Zone Layout 2 | . 2 Fabricator Hacks . | . . Repair Station Hacks . | . . Recycling Unit Hacks . | . . Scanalyzer . | . . Garrison Access Hacks . | . . Unauthorized Hacks 1 | . 1 Terminals 1 | . 1 Botnet 1 | . 1 Fabricators . | . . Repair Stations . | . . Recycling Units . | . . Scanalyzers . | . . Garrison Access . | . . Data Cores Recovered . | . . Used . | . . Hacking Detections 2 | . 2 Full Trace Events . | . . Feedback Events . | . . Feedback Blocked . | . . Robot Schematics Acquired . | . . Robots Built . | . . Authchips . | . . Time . | . . Total Robot Build Rating . | . . Part Schematics Acquired . | . . Parts Built . | . . Authchips . | . . Time . | . . Total Part Build Rating . | . . Part Studies Acquired . | . . Parts Repaired . | . . Time . | . . Parts Recycled . | . . Recycled Matter . | . . Retrieved Matter . | . . Retrieved Components . | . . Parts Scanalyzed . | . . Part Schematics Acquired . | . . Parts Damaged . | . . Bothacking | -11 -10 ------------ Run | Yrd Mat Used RIF Installer . | . . Robots Hacked . | . . Non-combat . | . . Combat . | . . Robot Hacks Applied . | . . Relay Couplers Released . | . . Fabnet Peak Effective % . | . . Robots Rewired . | . . Allies Hacked . | . . Hacks Repelled . | . . Allies | -11 -10 -------- Run | Yrd Mat Total Allies . | . . Largest Group . | . . Highest-Rated Group . | . . Highest-Rated Ally . | . . Total Orders . | . . Ally Attacks . | . . Total Damage . | . . Kills . | . . Allies Corrupted . | . . Allies Melted . | . . Intel | -11 -10 ------- Run | Yrd Mat Active Infowar (turns) 246 | 24 222 Seismic 246 | 24 222 Robot Analysis Total . | . . Derelict Logs Recovered . | . . Drone Launches . | . . Drone Recoveries . | . . Exploration | -11 -10 ------------- Run | Yrd Mat Turns Passed 346 | 124 222 Spaces Moved 110 | 61 49 Core 3 | 3 . Treads 107 | 58 49 Legs . | . . Wheels . | . . Hover . | . . Flight . | . . Fastest Speed 50 | 50 160 Average Speed 170 | 154 189 Slowest Speed 240 | 160 240 Overloaded Moves . | . . Propulsion Burnouts . | . . Robots Hopped . | . . Potential Cave-ins . | . . Cave-ins Triggered . | . . Exploration Rate (%) 9 | 5 13 Regions Visited 1 Branch Regions . Pre-discovered Areas . | . . Known Exits Taken . | . . Unknown Exits Taken 1 | 1 . Scrap Searched . | . . Spaces Dug . | . . Terrain Destroyed . | . . Melee . | . . Projectile . | . . AOE . | . . Terrain Rammed . | . . Walls Destroyed . | . . Machines Disabled . | . . Actions | -11 -10 --------- Run | Yrd Mat Total 173 | 75 98 Wait . | . . Move 109 | 60 49 Hop . | . . Pick Up 1 | 1 . Fast Attach 8 | 7 1 Attach . | . . Detach . | . . Swap 1 | . 1 Drop 1 | . 1 Fire 52 | 6 46 Melee . | . . Ram . | . . Kick . | . . Crush 1 | 1 . Escape Stasis . | . . Rewire . | . . Trap . | . . Miscellaneous . | . . Route ------- -11/Scrapyard -10/Materials (discovered 1 exit: [*Min]) History --------- Turn | Location | Event 55 | -11/Scrapyard | Discovered new exit (range 16) 125 | -11/Scrapyard | Entered Materials 170 | -10/Materials | Discovered new exit (range 15) 312 | -10/Materials | Build established: Mutant 328 | -10/Materials | Core integrity fell below 50% 340 | -10/Materials | Core integrity fell below 20% 347 | -10/Materials | Destroyed by G-34 Mercenary with Small Laser Last Messages --------------- 00320_ Assault Rifle destroyed. 00321_ Acquired Assault Rifle. 00322_ K-01 Serf collects debris. 00323_ K-01 Serf cleans the Neutrino Reactor. 00324_ R-06 Scavenger collects Ion Engine. 00325_ G-34 Mercenary destroyed. 00325_ K-01 Serf collects debris. 00326_ R-06 Scavenger collects Ion Engine. 00327_ R-06 Scavenger collects Aluminum Leg. 00328_ K-01 Serf collects debris. 00328_ Lgt. Treads destroyed. 00329_ K-01 Serf collects debris. 00329_ R-06 Scavenger collects Aluminum Leg. 00330_ Lgt. Treads destroyed. 00332_ K-01 Serf cleans the Neutrino Reactor. 00333_ R-06 Scavenger collects Heat Sink. 00336_ K-01 Serf collects debris. 00336_ Ion Engine destroyed. 00338_ U-05 Engineer builds a Door. 00339_ K-01 Serf collects debris. Map ----- +----------------------------------------------------+ | ??????????????????????????????????# #??????# | | ??????????????????????????????????# #??????# | | ??????????????????????????????????# #??????# | | ?????????????????????????????????## #??????# | | ??????????????????""" ""#?# ## ##+#####??# | | ??????????????????""" Y"#?# """ ## # #??# | | ??????????????????""" ""#?# """ ## # """ #??# | | ?????????????????? #?# """ ## # """ #??# | | ??????????????????""" #?# ## # """ #??# | | ??????????????????""" #?# ## # #??# | | ??????????????????""" ######+#### # #?## | | ?????????????????? # ########## | | ???????????????########## | | ???????????????#"""""""#T ######## T | | ???????????????#" !"| "## " """ # # | | ??????????? ##" "## """""" # """ # | | ??????????# """ % # """ ##### | | ??????????# < % + """ #???# | | ??????????# % # """ #???# | | ???????????????# ##+######"T"#^^# """ #???# | | ???????????????######### ######^ # #???# | | ?????????????????? #?#%% """#????# + """ #??## | | ?????????????????? #?# kg"""#????# ## """ #??# | | ?????????????????? #?# g """###### ## """ #### | | ?????????????????? #?# + ## + | | ?????????????????? #?# @ # ## #### | | ?????????????????? #?####+### ## #??# | | ?????????????????? #????# ############# | | ?????????????????? #????# ######## # #?? | | ??????????????????#########+#####??# # #?? | | ??????????????????# #??# # #?? | | ??????????????????+ #??# # #?? | | ??????????????????# " """ """ #### ##+##+######? | | ??????????????????# T """ """ + ? | | ??????????????????# " """ """ ## ####### ? | | ?????????????????????????????????????????????????? | | ?????????????????????????????????????????????????? | | ?????????????????????????????????????????????????? | | ?????????????????????????????????????????????????? | | ?????????????????????????????????????????????????? | | ?????????????????????????????????????????????????? | | ?????????????????????????????????????????????????? | | ?????????????????????????????????????????????????? | | ?????????????????????????????????????????????????? | | ?????????????????????????????????????????????????? | | ?????????????????????????????????????????????????? | | ?????????????????????????????????????????????????? | | ?????????????????????????????????????????????????? | | ?????????????????????????????????????????????????? | | ?????????????????????????????????????????????????? | +----------------------------------------------------+ Best States ------------- Heat Dissipation 25 Energy Generation 10 Energy Capacity 250 Matter Stores 278 Matter Capacity 300 Sight Range 16 Terrain Scan Density 10 Evasion (%) 40 Recoil Reduction 2 Item Schematics ----------------- None Robot Schematics ------------------ None Fabricated ------------ Nothing Repaired ---------- Nothing Studied --------- None Alien Tech Used ----------------- None Achievements -------------- None Challenges ------------ None Game ------ Seed EfficiencyClaymoresAutominer Manual? 0 Play Time 00:04:38 Cumulative 36.9 hours Start 2026.07.09 @ 12:14:33 End 2026.07.09 @ 12:17:13 Sessions 1 Manual Loads 0 Difficulty Rogue Special Mode None Game No. 43 Rogue 43 Adventurer 0 Explorer 0 Win Type - Total 1 Types 1/0/0/0/0/0/0/0/0/0 Lore% 36 Gallery% 33 Achievement% 30 Wizard Run 0 Options --------- Layout 1 ASCII 0 Keyboard 1 Movement Numpad Keybinds 1 Fullscreen 2 Font 24/Smallcaps Map View 50x40 Zoom Use 0% Tactical HUD 1 Map Filters NONE Filters NONE Steam 1 RUN: 0a0f22b8-8c94-4c00-993b-73704016db44